bitfinex/quotes_SOLUSD_20220116
["timestamp","ask_amount","ask_price","bid_price","bid_amount"]
[1642308367603,1.42283309,147.41,147.32,6.0]
[1642308367805,1.42283309,147.41,147.29,24.7939]
[1642308368004,7.67283309,147.41,147.32,6.0]
[1642308368209,23.0732,147.4,147.32,6.0]
[1642308368405,13.54283948,147.39,147.32,6.0]
[1642308368606,13.54283948,147.39,147.3,42.97153257]
[1642308368806,13.79283948,147.39,147.3,49.22153257]
[1642308369605,13.54283948,147.39,147.3,49.22153257]
[1642308370911,13.79283948,147.39,147.3,6.25]
[1642308371106,13.79283948,147.39,147.3,0.25]
[1642308371308,13.79283948,147.39,147.3,6.0]
[1642308371709,13.79283948,147.39,147.3,6.25]
[1642308372112,13.79283948,147.39,147.3,0.25]
[1642308372815,13.79283948,147.39,147.29,68.38943734]
[1642308373212,13.54283948,147.39,147.29,68.38943734]
[1642308373410,13.54283948,147.39,147.29,74.38943734]
[1642308373809,19.54283948,147.39,147.29,74.38943734]
[1642308374014,19.54283948,147.39,147.29,31.0439]
[1642308374911,19.79283948,147.39,147.29,31.0439]
[1642308376113,19.79283948,147.39,147.31,0.02001789]
[1642308377513,13.54283948,147.39,147.31,0.02001789]
[1642308378913,13.79283948,147.39,147.31,0.02001789]
[1642308379113,19.79283948,147.39,147.31,0.02001789]
[1642308381021,19.79283948,147.39,147.29,31.0439]
[1642308384018,13.79283948,147.39,147.29,31.0439]
[1642308385821,13.79283948,147.39,147.3,0.26]
[1642308386050,13.79283948,147.39,147.31,0.02001789]
[1642308386622,13.54283948,147.39,147.31,0.02001789]
[1642308387821,13.79283948,147.39,147.31,0.02001789]
[1642308388223,13.79283948,147.39,147.31,24.36391789]
[1642308388430,13.79283948,147.39,147.31,30.61391789]
[1642308388824,13.79283948,147.39,147.31,24.36391789]
[1642308390626,19.79283948,147.39,147.31,24.36391789]
[1642308391026,19.79283948,147.39,147.31,24.3439]
[1642308391225,19.79283948,147.39,147.31,24.5939]
[1642308391629,19.79283948,147.39,147.31,24.3439]
[1642308391825,19.79283948,147.39,147.31,24.5939]
[1642308392825,13.79283948,147.39,147.31,24.5939]
[1642308393730,13.79283948,147.39,147.31,24.3439]
[1642308394531,15.72057096,147.39,147.31,24.5939]
[1642308394731,15.72057096,147.39,147.31,24.3439]
[1642308394930,21.72057096,147.39,147.31,24.3439]
[1642308395830,21.72057096,147.39,147.31,24.5939]
[1642308397936,21.72057096,147.39,147.31,24.3439]
[1642308400642,19.79283948,147.39,147.31,24.3439]
[1642308401062,29.63283948,147.39,147.31,24.3439]
[1642308401963,53.16021412,147.38,147.31,24.3439]
[1642308402365,59.41021412,147.38,147.31,24.3439]
[1642308402865,6.25,147.38,147.31,24.3439]
[1642308403266,0.25,147.38,147.31,24.3439]
[1642308403466,6.0,147.38,147.31,24.3439]
[1642308403666,6.25,147.38,147.31,24.3439]
[1642308404067,0.25,147.38,147.31,24.3439]
[1642308404270,6.25,147.38,147.31,24.3439]
[1642308404867,0.25,147.38,147.31,24.3439]
[1642308405067,29.63283948,147.39,147.31,24.3439]
[1642308409871,29.63283948,147.39,147.31,24.5939]
[1642308410272,1.90004224,147.38,147.31,24.5939]
[1642308410473,2.15004224,147.38,147.31,24.5939]
[1642308410672,8.15004224,147.38,147.31,24.5939]
[1642308414775,8.15004224,147.38,147.31,24.3439]
[1642308415376,9.85081812,147.38,147.31,24.3439]
[1642308415576,19.69081812,147.38,147.31,24.3439]
[1642308416577,17.99004224,147.38,147.31,24.3439]
[1642308416978,16.09,147.38,147.31,24.3439]
[1642308418681,69.25434155,147.38,147.31,24.3439]
[1642308419080,17.79077588,147.38,147.31,24.3439]
[1642308419480,53.16330906,147.37,147.31,24.3439]
[1642308419680,9.84,147.36,147.31,24.3439]
[1642308419882,16.09,147.36,147.31,24.3439]
[1642308420281,69.25418492,147.36,147.31,24.3439]
[1642308420483,16.09,147.36,147.31,24.3439]
[1642308420884,69.25454419,147.36,147.31,24.3439]
[1642308421181,16.09,147.36,147.31,24.3439]
[1642308422083,10.09,147.36,147.31,24.3439]
[1642308422685,16.09,147.36,147.31,24.3439]
[1642308424487,10.09,147.36,147.31,24.3439]
[1642308424887,16.09,147.36,147.31,24.3439]
[1642308429394,10.09,147.36,147.31,24.3439]
[1642308429596,0.25,147.36,147.31,24.3439]
[1642308429795,8.16206103,147.37,147.31,24.3439]
[1642308429997,2.16206103,147.37,147.31,24.3439]
[1642308430197,8.16206103,147.37,147.31,24.5939]
[1642308430400,2.16206103,147.37,147.31,24.5939]
[1642308430597,2.16206103,147.37,147.31,24.3439]
[1642308430996,1.91206103,147.37,147.31,24.3439]
[1642308431198,1.91206103,147.37,147.31,24.5939]
[1642308431696,1.91206103,147.37,147.31,24.3439]
[1642308432299,2.16206103,147.37,147.31,24.3439]
[1642308434098,23.38283948,147.39,147.31,24.3439]
[1642308434297,29.38283948,147.39,147.31,24.3439]
[1642308434931,31.08361536,147.39,147.31,24.3439]
[1642308435331,31.33361536,147.39,147.31,24.3439]
[1642308438033,53.1654082,147.38,147.26,24.9308]
[1642308438231,9.84,147.37,147.26,25.1808]
[1642308438432,23.0802,147.36,147.26,25.1808]
[1642308438632,9.84,147.35,147.26,25.1808]
[1642308438835,5.32951156,147.33,147.26,25.1808]
[1642308439132,5.32951156,147.33,147.26,49.8455]
[1642308439332,11.57951156,147.33,147.26,49.8455]
[1642308439632,13.28028744,147.33,147.26,49.8455]
[1642308440131,13.28028744,147.33,147.22,7.08303053]
[1642308440132,23.12028744,147.33,147.22,7.08303053]
[1642308440332,23.8419,147.32,147.22,6.0]
[1642308440534,9.84,147.31,147.21,100.4]
[1642308440731,17.54077588,147.31,147.21,94.4]
[1642308440932,17.79077588,147.31,147.21,94.4]
[1642308441133,1.70077588,147.3,147.28,0.02008076]
[1642308441335,9.84,147.29,147.28,0.02008076]
[1642308441735,11.79077588,147.29,147.28,0.02008076]
[1642308441935,17.79077588,147.29,147.28,0.02008076]
[1642308442337,11.79077588,147.29,147.28,0.02008076]
[1642308443637,14.82297585,147.29,147.28,0.02008076]
[1642308444838,14.82297585,147.29,147.28,8.076e-05]
[1642308446040,14.82297585,147.29,147.23,1.93257448]
[1642308446239,13.12219997,147.29,147.23,1.93257448]
[1642308446440,19.12219997,147.29,147.23,1.93257448]
[1642308446641,20.82297585,147.29,147.23,1.93257448]
[1642308446839,19.12219997,147.29,147.23,1.93257448]
[1642308448543,20.82297585,147.29,147.23,1.93257448]
[1642308450446,20.82297585,147.29,147.21,23.228]
[1642308450646,20.82297585,147.29,147.21,23.478]
[1642308452946,31.01067585,147.29,147.21,23.478]
[1642308453149,31.01067585,147.29,147.21,0.25]
[1642308453346,76.96898947,147.28,147.18,24.7769]
[1642308453576,9.84,147.27,147.18,24.7769]
[1642308453747,3.05219188,147.26,147.18,25.0269]
[1642308453947,9.84,147.25,147.18,25.0269]
[1642308454149,16.316,147.25,147.18,24.7769]
[1642308454350,22.316,147.25,147.18,24.7769]
[1642308454548,24.01677588,147.25,147.18,24.7769]
[1642308455148,48.73207588,147.25,147.18,24.7769]
[1642308455350,47.0313,147.25,147.18,24.7769]
[1642308456152,40.8053,147.25,147.18,24.7769]
[1642308456451,50.9957,147.25,147.18,24.7769]
[1642308457048,50.9957,147.25,147.17,94.4]
[1642308457250,52.69647588,147.25,147.17,94.4]
[1642308458350,52.73647588,147.25,147.17,94.4]
[1642308459650,51.0357,147.25,147.17,94.4]
[1642308461454,45.0357,147.25,147.17,94.4]
[1642308462853,51.0357,147.25,147.17,94.4]
[1642308463254,51.0357,147.25,147.14,24.0641]
[1642308463454,51.0357,147.25,147.14,30.3141]
[1642308463853,40.8453,147.25,147.14,30.3141]
[1642308465058,34.8453,147.25,147.14,30.3141]
[1642308473593,34.8453,147.25,147.14,30.0641]
[1642308474895,34.8453,147.25,147.14,30.3141]
[1642308475692,34.8453,147.25,147.16,1.93338582]
[1642308475892,34.8453,147.25,147.16,2.18338582]
[1642308478901,9.88,147.25,147.16,2.18338582]
[1642308479099,0.04,147.25,147.17,0.26]
[1642308479297,0.04,147.25,147.18,45.31805061]
[1642308479699,0.04,147.25,147.18,45.56805061]
[1642308481000,0.04,147.25,147.18,45.31805061]
[1642308481197,0.04,147.25,147.18,45.56805061]
[1642308482998,0.04,147.25,147.18,51.56805061]
[1642308483398,0.04,147.25,147.18,45.56805061]
[1642308486909,0.04,147.25,147.19,0.26]
[1642308487107,0.04,147.25,147.19,23.9378]
[1642308487333,0.04,147.25,147.2,9.84]
[1642308487535,0.04,147.25,147.21,22.8507]
[1642308487733,0.04,147.25,147.21,23.1107]
[1642308487933,0.04,147.25,147.21,29.3607]
[1642308490936,0.04,147.25,147.23,44.90865371]
[1642308491438,0.04,147.25,147.24,0.26]
[1642308492038,0.04,147.25,147.24,3.29219997]
[1642308492239,0.04,147.25,147.24,9.54219997]
[1642308496141,0.04,147.25,147.24,9.29219997]
[1642308497543,0.04,147.25,147.24,9.54219997]
[1642308498947,0.04,147.25,147.24,77.58219997]
[1642308519866,0.04,147.25,147.24,87.42219997]
[1642308527302,24.6329,147.32,147.24,87.42219997]
[1642308527903,9.84,147.37,147.24,87.42219997]
[1642308528203,9.84,147.4,147.26,68.04]
[1642308528401,13.86664085,147.36,147.28,38.16846783]
[1642308528600,13.86664085,147.36,147.29,24.0693]
[1642308528801,13.86664085,147.36,147.29,24.3293]
[1642308529001,13.86664085,147.36,147.29,30.5793]
[1642308538812,13.86664085,147.36,147.29,30.3193]
[1642308539214,13.86664085,147.36,147.29,24.0693]
[1642308539416,14.11664085,147.36,147.29,6.0]
[1642308539616,14.11664085,147.36,147.26,83.88]
[1642308539843,23.3671,147.35,147.27,23.6397]
[1642308540015,23.3671,147.35,147.27,68.13198917]
[1642308540218,23.3671,147.35,147.27,74.13198917]
[1642308540622,23.3671,147.35,147.28,0.26]
[1642308545323,23.6171,147.35,147.28,0.26]
[1642308545524,23.3671,147.35,147.28,0.26]
[1642308550062,23.3671,147.35,147.28,10.3067]
[1642308550457,23.3671,147.35,147.28,16.5567]
[1642308551761,23.6171,147.35,147.28,16.5567]
[1642308552564,23.6171,147.35,147.28,10.5567]
[1642308552762,23.3671,147.35,147.28,0.51]
[1642308552964,23.3671,147.35,147.28,0.26]
[1642308566308,23.3671,147.35,147.27,152.54708917]
[1642308566507,23.3671,147.35,147.27,162.38708917]
[1642308567508,23.3671,147.35,147.28,0.26]
[1642308569909,23.6171,147.35,147.28,0.26]
[1642308571314,23.3671,147.35,147.28,0.26]
[1642308589861,23.6171,147.35,147.27,29.6397]
[1642308590064,23.6171,147.35,147.27,6.0]
[1642308590264,23.6171,147.35,147.24,6.0]
[1642308590463,23.6171,147.35,147.23,16.1993]
[1642308590965,23.6171,147.35,147.24,39.16242669]
[1642308591164,23.6171,147.35,147.24,63.09592669]
[1642308591367,23.6171,147.35,147.27,1.86340334]
[1642308591764,23.6171,147.35,147.27,2.11340334]
[1642308592567,23.6171,147.35,147.27,1.86340334]
[1642308592768,23.6171,147.35,147.27,2.11340334]
[1642308599678,23.6171,147.35,147.27,0.25]
[1642308599876,23.6171,147.35,147.25,0.26]
[1642308610283,25.54883814,147.35,147.25,0.26]
[1642308610886,31.54883814,147.35,147.25,0.26]
[1642308611122,25.54883814,147.35,147.25,0.26]
[1642308615892,25.54883814,147.35,147.24,30.1835]
[1642308616093,43.08961402,147.35,147.24,6.25]
[1642308616290,43.08961402,147.35,147.24,6.0]
[1642308616491,53.18635602,147.34,147.23,1.89208256]
[1642308616691,32.8485,147.33,147.23,1.89208256]
[1642308616891,40.79927588,147.33,147.23,1.89208256]
[1642308617992,39.0985,147.33,147.23,1.89208256]
[1642308618392,10.1855,147.32,147.23,1.89208256]
[1642308618591,23.53,147.31,147.23,1.89208256]
[1642308618992,29.78,147.31,147.21,48.08877268]
[1642308619190,29.78,147.31,147.21,48.33877268]
[1642308620295,29.78,147.31,147.21,0.25]
[1642308620792,29.78,147.31,147.2,10.6732]
[1642308621198,29.78,147.31,147.2,58.44486659]
[1642308622596,29.53,147.31,147.2,58.44486659]
[1642308623697,29.53,147.31,147.2,48.02166659]
[1642308623903,29.78,147.31,147.2,48.02166659]
[1642308626934,29.78,147.31,147.2,0.25]
[1642308627337,29.78,147.31,147.19,12.27609961]
[1642308627534,56.3043,147.31,147.19,12.27609961]
[1642308628539,58.00507588,147.31,147.19,12.27609961]
[1642308628935,58.00507588,147.31,147.19,18.27609961]
[1642308629138,58.00507588,147.31,147.19,12.27609961]
[1642308629337,56.3043,147.31,147.2,0.26]
[1642308629536,50.3043,147.31,147.2,0.26]
[1642308630941,56.3043,147.31,147.2,0.26]
[1642308631138,56.3043,147.31,147.19,12.27609961]
[1642308632139,56.3043,147.31,147.2,23.9507]
[1642308632339,58.00507588,147.31,147.2,0.25]
[1642308633539,58.00507588,147.31,147.19,12.27609961]
[1642308635240,58.00507588,147.31,147.2,24.3811]
[1642308635441,1.2121323,147.3,147.2,24.6311]
[1642308635845,7.4621323,147.3,147.2,24.6311]
[1642308636647,23.5616,147.29,147.2,24.6311]
[1642308636845,29.8116,147.29,147.2,24.6311]
[1642308637244,23.8116,147.29,147.2,24.6311]
[1642308637446,23.5616,147.29,147.2,92.6711]
[1642308637644,9.84,147.33,147.21,0.26]
[1642308637844,0.25,147.33,147.21,0.26]
[1642308638246,0.25,147.33,147.21,10.1]
[1642308638449,0.25,147.33,147.23,36.95741715]
[1642308638651,0.25,147.33,147.24,24.5177]
[1642308638947,0.25,147.33,147.24,31.0277]
[1642308639149,23.8837,147.34,147.24,31.0277]
[1642308642754,23.8837,147.34,147.24,30.7677]
[1642308642953,23.8837,147.34,147.19,10.0957]
[1642308643153,46.4757,147.34,147.23,0.25]
[1642308644353,46.4757,147.34,147.22,23.6062]
[1642308644553,49.9078,147.34,147.23,1.9297701]
[1642308644983,49.9078,147.34,147.23,2.1797701]
[1642308646282,49.9078,147.34,147.23,1.9297701]
[1642308649990,39.7237,147.34,147.23,2.1797701]
[1642308650588,39.7237,147.34,147.24,0.26]
[1642308651488,23.8837,147.34,147.24,0.26]
[1642308652493,23.8837,147.34,147.24,22.8043]
[1642308652692,23.8837,147.34,147.24,29.0543]
[1642308656596,23.6337,147.34,147.24,29.0543]
[1642308657596,23.6337,147.34,147.24,28.8043]
[1642308657898,23.8837,147.34,147.24,28.8043]
[1642308658998,23.8837,147.34,147.24,29.0543]
[1642308659797,23.6337,147.34,147.24,29.0543]
[1642308662800,51.63441748,147.37,147.24,97.0943]
[1642308663001,22.7835,147.36,147.24,104.6973]
[1642308663200,22.7835,147.36,147.25,9.84]
[1642308663399,33.8587,147.42,147.26,0.26]
[1642308663636,24.2119,147.41,147.27,77.88]
[1642308663805,24.2119,147.41,147.28,90.8575]
[1642308664003,17.64543434,147.4,147.29,43.11732495]
[1642308664404,24.6158,147.39,147.3,23.3639]
[1642308664803,24.8658,147.39,147.3,29.6139]
[1642308665604,1.91964412,147.36,147.3,29.6139]
[1642308667411,1.2269167,147.35,147.3,29.6139]
[1642308667906,1.91964412,147.36,147.3,29.6139]
[1642308673019,13.81614882,147.37,147.3,29.6139]
[1642308673420,14.06614882,147.37,147.3,29.1039]
[1642308673620,14.06614882,147.37,147.27,9.84]
[1642308673820,22.6988,147.36,147.28,23.0438]
[1642308674225,22.9488,147.36,147.28,29.2938]
[1642308674420,22.9488,147.36,147.29,43.03318831]
[1642308674821,22.9488,147.36,147.29,43.28318831]
[1642308676030,22.9488,147.36,147.29,0.25]
[1642308676226,22.9488,147.36,147.28,29.2938]
[1642308676428,22.9488,147.36,147.28,29.0438]
[1642308676627,22.9488,147.36,147.28,23.0438]
[1642308677026,22.9488,147.36,147.28,58.5696414]
[1642308677828,22.9488,147.36,147.28,58.8196414]
[1642308678855,22.9488,147.36,147.28,23.2938]
[1642308680955,28.9488,147.36,147.28,23.2938]
[1642308681155,22.9488,147.36,147.28,23.2938]
[1642308681554,22.6988,147.36,147.28,23.2938]
[1642308683257,28.9488,147.36,147.28,23.2938]
[1642308683659,22.9488,147.36,147.28,23.2938]
[1642308683861,28.6988,147.36,147.28,23.2938]
[1642308684062,15.7322023,147.37,147.28,31.3498]
[1642308684262,21.7322023,147.37,147.29,0.26]
[1642308690474,19.81614882,147.37,147.29,0.26]
[1642308700213,6.0,147.37,147.29,10.1]
[1642308700412,73.558,147.42,147.29,16.35]
[1642308700609,73.808,147.42,147.29,16.35]
[1642308701010,73.808,147.42,147.29,84.39]
[1642308701210,16.20958258,147.41,147.3,24.0124]
[1642308701413,22.45958258,147.41,147.31,0.26]
[1642308701811,24.9346,147.4,147.31,0.26]
[1642308702011,1.93120469,147.39,147.31,0.26]
[1642308703418,21.86580469,147.4,147.31,0.26]
[1642308705218,16.86580469,147.4,147.31,0.26]
[1642308706519,11.86580469,147.4,147.31,0.26]
[1642308707223,12.11580469,147.4,147.3,24.0124]
[1642308708023,7.11580469,147.4,147.3,24.0124]
[1642308708521,23.784,147.39,147.3,24.2624]
[1642308708920,24.034,147.39,147.3,24.2624]
[1642308715528,24.034,147.39,147.3,30.2624]
[1642308715733,24.034,147.39,147.3,24.2624]
[1642308716629,19.034,147.39,147.3,24.2624]
[1642308716831,0.25,147.39,147.3,24.2624]
[1642308717232,16.20958258,147.41,147.3,24.2624]
[1642308717233,22.45958258,147.41,147.3,24.2624]
[1642308717935,1.93235364,147.4,147.3,24.2624]
[1642308718337,2.18235364,147.4,147.3,24.2624]
[1642308720037,2.18235364,147.4,147.3,0.25]
[1642308720242,12.02235364,147.4,147.29,2.15197349]
[1642308720439,1.70077588,147.39,147.29,1.90197349]
[1642308720642,9.84,147.38,147.29,1.90197349]
[1642308720849,9.84,147.37,147.29,1.90197349]
[1642308721241,2.66276846,147.36,147.29,44.5752467]
[1642308721440,9.84,147.35,147.29,1.90197349]
[1642308721840,10.09,147.35,147.29,1.90197349]
[1642308722340,16.09,147.35,147.29,51.52686625]
[1642308722540,9.84,147.35,147.29,51.52686625]
[1642308722742,11.77235364,147.4,147.3,0.31999044]
[1642308723042,1.93235364,147.4,147.3,40.12578634]
[1642308723242,1.93235364,147.4,147.31,1.3301959]
[1642308723545,17.76755098,147.39,147.32,0.26]
[1642308724265,1.93235364,147.4,147.32,1.5901959]
[1642308724466,1.93235364,147.4,147.32,1.8401959]
[1642308724467,7.93235364,147.4,147.32,1.8401959]
[1642308724668,1.93235364,147.4,147.32,1.8401959]
[1642308724867,7.93235364,147.4,147.32,1.8401959]
[1642308725366,22.80775957,147.4,147.32,1.8401959]
[1642308727469,21.12540593,147.4,147.32,1.8401959]
[1642308729673,21.12540593,147.4,147.32,0.51]
[1642308729973,21.12540593,147.4,147.31,0.26]
[1642308730372,21.12540593,147.4,147.31,1.58715513]
[1642308730774,21.12540593,147.4,147.31,1.83715513]
[1642308730973,20.87540593,147.4,147.31,1.83715513]
[1642308731775,21.12540593,147.4,147.31,1.83715513]
[1642308732177,20.87540593,147.4,147.31,1.83715513]
[1642308732375,20.87540593,147.4,147.31,7.83715513]
[1642308732776,21.12540593,147.4,147.31,7.83715513]
[1642308733376,23.053,147.42,147.31,7.83715513]
[1642308733578,9.84,147.48,147.32,91.5627]
[1642308733780,33.6507,147.48,147.33,9.84]
[1642308733977,39.6507,147.48,147.33,11.42715513]
[1642308734178,39.6507,147.48,147.34,1.32715513]
[1642308734379,16.90050793,147.47,147.35,0.26]
[1642308734781,23.15050793,147.47,147.35,1.58715513]
[1642308734979,23.8061,147.46,147.35,1.83715513]
[1642308735183,23.8061,147.46,147.35,7.83715513]
[1642308735380,30.0561,147.46,147.35,7.83715513]
[1642308738689,1.92836871,147.45,147.35,7.83715513]
[1642308738888,8.17836871,147.45,147.35,7.83715513]
[1642308739288,8.17836871,147.45,147.36,23.1248]
[1642308739686,8.17836871,147.45,147.36,23.3748]
[1642308740586,8.17836871,147.45,147.34,35.84746479]
[1642308740788,8.17836871,147.45,147.35,0.25]
[1642308741087,8.17836871,147.45,147.31,21.69927303]
[1642308741286,8.17836871,147.45,147.32,0.25]
[1642308741689,8.17836871,147.45,147.32,73.06673366]
[1642308741885,8.17836871,147.45,147.32,73.32673366]
[1642308742487,18.35516871,147.45,147.32,73.32673366]
[1642308744090,8.17836871,147.45,147.32,73.32673366]
[1642308744388,8.17836871,147.45,147.32,83.16673366]
[1642308745690,8.17836871,147.45,147.32,89.16673366]
[1642308747792,8.17836871,147.45,147.33,1.32715513]
[1642308747994,6.25,147.45,147.33,1.32715513]
[1642308748192,6.25,147.45,147.33,1.57715513]
[1642308748391,6.25,147.45,147.34,0.26]
[1642308748794,6.25,147.45,147.34,93.79255513]
[1642308748994,6.25,147.45,147.35,1.32715513]
[1642308749196,0.25,147.45,147.35,1.32715513]
[1642308749393,6.0,147.45,147.36,0.26]
[1642308749797,6.25,147.45,147.36,1.58715513]
[1642308749994,0.25,147.45,147.37,44.70570168]
[1642308750197,6.25,147.45,147.37,44.70570168]
[1642308750393,6.25,147.45,147.37,44.95570168]
[1642308750898,0.25,147.45,147.37,44.95570168]
[1642308751098,30.0561,147.46,147.37,44.95570168]
[1642308752499,30.0561,147.46,147.34,25.49255513]
[1642308752900,30.0561,147.46,147.34,24.4154]
[1642308753399,30.0561,147.46,147.34,6.0]
[1642308753601,39.8961,147.46,147.34,6.0]
[1642308753806,39.8961,147.46,147.33,40.83742785]
[1642308754005,39.8961,147.46,147.33,46.83742785]
[1642308754407,50.0723,147.46,147.33,46.83742785]
[1642308754808,118.1123,147.46,147.33,46.83742785]
[1642308755207,118.1123,147.46,147.33,6.25]
[1642308755407,118.1123,147.46,147.33,0.25]
[1642308755609,118.1123,147.46,147.31,52.33605513]
[1642308756108,118.1123,147.46,147.32,40.80144108]
[1642308756309,118.1123,147.46,147.32,47.05144108]
[1642308757531,117.8623,147.46,147.32,47.05144108]
[1642308757933,49.8223,147.46,147.32,47.05144108]
[1642308758132,49.8223,147.46,147.33,0.26]
[1642308758335,49.8223,147.46,147.33,23.293]
[1642308758533,49.8223,147.46,147.33,23.033]
[1642308758534,1.97184311,147.41,147.33,23.033]
[1642308758735,1.97184311,147.41,147.33,29.283]
[1642308758938,2.22184311,147.41,147.33,29.283]
[1642308769144,2.22184311,147.41,147.34,0.26]
[1642308774860,8.22184311,147.41,147.34,0.26]
[1642308775249,2.22184311,147.41,147.34,0.26]
[1642308775553,20.62054311,147.43,147.34,0.26]
[1642308775750,12.73918551,147.42,147.34,0.26]
[1642308776885,14.67139265,147.42,147.34,0.26]
[1642308777276,14.92139265,147.42,147.34,0.26]
[1642308777676,14.92139265,147.42,147.33,29.283]
[1642308778080,14.92139265,147.42,147.33,30.60657597]
[1642308778979,14.92139265,147.42,147.33,29.033]
[1642308779380,14.92139265,147.42,147.33,29.283]
[1642308779581,19.76139265,147.42,147.33,29.033]
[1642308779781,19.76139265,147.42,147.33,29.283]
[1642308780382,25.76139265,147.42,147.33,29.283]
[1642308780591,19.76139265,147.42,147.33,29.283]
[1642308780785,25.76139265,147.42,147.33,0.25]
[1642308780988,25.76139265,147.42,147.31,1.88437582]
[1642308781182,93.80139265,147.42,147.31,1.88437582]
[1642308781383,25.76139265,147.42,147.31,1.88437582]
[1642308781583,27.46216853,147.42,147.31,1.88437582]
[1642308781782,25.76139265,147.42,147.31,1.88437582]
[1642308782382,35.94039265,147.42,147.31,1.88437582]
[1642308783283,37.64116853,147.42,147.31,1.88437582]
[1642308783483,105.68116853,147.42,147.31,1.88437582]
[1642308783683,37.64116853,147.42,147.31,1.88437582]
[1642308783884,35.94039265,147.42,147.31,1.88437582]
[1642308784084,37.64116853,147.42,147.31,1.88437582]
[1642308785786,35.94039265,147.42,147.31,1.88437582]
[1642308786186,53.15765557,147.41,147.31,1.88437582]
[1642308786385,33.7837,147.4,147.32,37.16662027]
[1642308786587,4.16132242,147.39,147.32,37.16662027]
[1642308786787,4.16132242,147.39,147.32,37.41662027]
[1642308786988,4.41132242,147.39,147.32,37.41662027]
[1642308787988,4.41132242,147.39,147.32,43.41662027]
[1642308789290,4.41132242,147.39,147.32,44.74019624]
[1642308790089,4.41132242,147.39,147.32,68.03159624]
[1642308791992,4.41132242,147.39,147.33,0.26]
[1642308792194,9.84,147.44,147.33,0.26]
[1642308792398,59.14576344,147.44,147.33,0.26]
[1642308792593,6.0,147.44,147.34,1.32357597]
[1642308792996,30.2609,147.45,147.34,26.53867597]
[1642308793199,9.54154261,147.44,147.35,35.71285665]
[1642308793398,15.54154261,147.44,147.35,37.28643262]
[1642308793797,15.79154261,147.44,147.36,23.4026]
[1642308794199,15.79154261,147.44,147.36,23.6526]
[1642308794397,15.79154261,147.44,147.36,23.4026]
[1642308795197,9.79154261,147.44,147.36,23.6526]
[1642308796004,9.79154261,147.44,147.36,23.4026]
[1642308796597,15.79154261,147.44,147.36,23.6526]
[1642308796798,15.79154261,147.44,147.36,23.4026]
[1642308797200,9.79154261,147.44,147.36,23.6526]
[1642308797802,23.9577,147.43,147.36,23.6526]
[1642308798201,24.2077,147.43,147.36,23.6526]
[1642308798400,30.2077,147.43,147.36,23.6526]
[1642308801310,30.2077,147.43,147.38,0.02132615]
[1642308806139,30.2077,147.43,147.36,23.67388364]
[1642308806340,30.2077,147.43,147.36,23.42388364]
[1642308806543,30.2077,147.43,147.36,0.02128364]
[1642308808241,53.14982181,147.42,147.36,0.02128364]
[1642308808442,2.35896532,147.41,147.36,0.02128364]
[1642308808842,8.60896532,147.41,147.36,0.02128364]
[1642308810853,34.0422,147.4,147.36,0.02128364]
[1642308811046,34.0422,147.4,147.36,0.00128364]
[1642308811247,40.2922,147.4,147.38,0.00132615]
[1642308811445,3.03219997,147.39,147.38,0.00132615]
[1642308811651,12.87219997,147.39,147.38,0.00132615]
[1642308811850,19.12219997,147.39,147.38,0.00132615]
[1642308812446,29.30369997,147.39,147.38,0.00132615]
[1642308813649,19.12219997,147.39,147.38,0.00132615]
[1642308814251,12.87219997,147.39,147.38,0.00132615]
[1642308814451,3.03219997,147.39,147.38,0.00132615]
[1642308815649,3.28219997,147.39,147.38,0.00132615]
[1642308816251,3.28219997,147.39,147.29,0.26]
[1642308816651,3.28219997,147.39,147.28,30.0933]
[1642308816855,11.74771677,147.38,147.28,23.8433]
[1642308817251,17.99771677,147.38,147.28,23.8433]
[1642308817451,22.5411,147.37,147.28,23.8433]
[1642308817851,28.7911,147.37,147.28,23.8433]